fUST/lending_fUST_20240518
["ID","MTS","AMOUNT","RATE_DAILY","PERIOD"]
[327388768,1716039043633,-470.733284,0.00016438,2]
[327388769,1716039043643,-470.733284,0.00016438,2]
[327388770,1716039043652,-500.0,0.00016438,2]
[327388771,1716039043661,-500.0,0.00016438,2]
[327388772,1716039043672,-1199.25,0.00016438,2]
[327388773,1716039043681,-470.733284,0.00016438,2]
[327388774,1716039043691,-470.733284,0.00016438,2]
[327388775,1716039043701,-500.0,0.00016438,2]
[327388776,1716039043711,-387.43567427,0.00016438,2]
[327388777,1716039043722,-470.733284,0.00016438,2]
[327388778,1716039043732,-470.733284,0.00016438,2]
[327388779,1716039043742,-500.0,0.00016438,2]
[327388780,1716039043751,-470.733284,0.00016438,2]
[327388781,1716039043760,-347.91594249,0.00016438,2]
[327388782,1716039043770,-500.0,0.00016438,2]
[327388783,1716039043779,-1564.23,0.00016438,2]
[327388784,1716039043790,-500.0,0.00016438,2]
[327388785,1716039043800,-500.0,0.00016438,2]
[327388786,1716039043810,-500.0,0.00016438,2]
[327388787,1716039043819,-151.0,0.00016438,2]
[327388788,1716039043829,-262.11447,0.00016438,2]
[327388789,1716039043838,-958.48,0.00016438,2]
[327388790,1716039043848,-470.50456751,0.00016438,2]
[327388791,1716039043858,-500.0,0.00016438,2]
[327388792,1716039043867,-500.0,0.00016438,2]
[327388793,1716039043877,-500.0,0.00016438,2]
[327388794,1716039043887,-151.0,0.00016438,2]
[327388795,1716039043896,-151.0,0.00016438,2]
[327388796,1716039043906,-501.24219271,0.00016438,2]
[327388797,1716039043915,-500.0,0.00016438,2]
[327388798,1716039043925,-500.0,0.00016438,2]
[327388799,1716039043934,-491.90304216,0.00016438,2]
[327388800,1716039043945,-379.3402708,0.00016438,2]
[327388801,1716039043953,-547.93,0.00016438,2]
[327388802,1716039043962,-349.36928426,0.00016438,2]
[327388803,1716039043972,-500.0,0.00016438,2]
[327388804,1716039043981,-547.93,0.00016438,2]
[327388805,1716039043991,-547.93,0.00016438,2]
[327388806,1716039043999,-500.0,0.00016438,2]
[327388807,1716039044009,-547.93,0.00016438,2]
[327388808,1716039044018,-1504.897108,0.00016438,2]
[327388809,1716039044027,-547.93,0.00016438,2]
[327388810,1716039044036,-1504.897108,0.00016438,2]
[327388811,1716039044045,-250.38765594,0.00016438,2]
[327388812,1716039044220,-250.96294717,0.00016438,2]
[327388813,1716039044230,-547.93,0.00016438,2]
[327388814,1716039044239,-547.93,0.00016438,2]
[327388815,1716039044249,-1504.897108,0.00016438,2]
[327388816,1716039044259,-547.93,0.00016438,2]
[327388817,1716039044268,-383.30137187,0.00016438,2]
[327388818,1716039044277,-1504.897108,0.00016438,2]
[327388819,1716039044287,-547.93,0.00016438,2]
[327388820,1716039044296,-1504.897108,0.00016438,2]
[327388821,1716039044305,-547.93,0.00016438,2]
[327388822,1716039044315,-547.93,0.00016438,2]
[327388823,1716039044324,-547.93,0.00016438,2]
[327388824,1716039044334,-500.0,0.00016438,2]
[327388825,1716039044343,-500.0,0.00016438,2]
[327388826,1716039044353,-547.93,0.00016438,2]
[327388827,1716039044363,-547.93,0.00016438,2]
[327388828,1716039044377,-547.93,0.00016438,2]
[327388829,1716039044387,-1504.897108,0.00016438,2]
[327388830,1716039044397,-547.93,0.00016438,2]
[327388831,1716039044407,-547.93,0.00016438,2]
[327388832,1716039044417,-1504.897108,0.00016438,2]
[327388833,1716039044426,-500.0,0.00016438,2]
[327388834,1716039044435,-500.0,0.00016438,2]
[327388835,1716039044448,-547.93,0.00016438,2]
[327388836,1716039044457,-547.93,0.00016438,2]
[327388837,1716039044466,-1504.897108,0.00016438,2]
[327388838,1716039044475,-547.93,0.00016438,2]
[327388839,1716039044484,-1504.897108,0.00016438,2]
[327388840,1716039044494,-547.93,0.00016438,2]
[327388841,1716039044503,-1504.897108,0.00016438,2]
[327388842,1716039044513,-547.93,0.00016438,2]
[327388843,1716039044522,-547.93,0.00016438,2]
[327388844,1716039044531,-548.1190263,0.00016438,2]
[327388845,1716039044635,-500.0,0.00016438,2]
[327388846,1716039044645,-500.0,0.00016438,2]
[327388847,1716039044655,-500.0,0.00016438,2]
[327388848,1716039044664,-500.0,0.00016438,2]
[327388849,1716039044675,-500.0,0.00016438,2]
[327388850,1716039044684,-500.0,0.00016438,2]
[327388851,1716039044693,-503.05713404,0.00016438,2]
[327388852,1716039044703,-641.74707468,0.00016438,2]
[327388853,1716039044712,-500.0,0.00016438,2]
[327388854,1716039044722,-500.0,0.00016438,2]
[327388855,1716039044731,-152.930151,0.00016438,2]
[327388856,1716039044742,-952.77,0.00016438,2]
[327388857,1716039044752,-506.97,0.00016438,2]
[327388858,1716039044761,-500.65693847,0.00016438,2]
[327388859,1716039044771,-500.0,0.00016438,2]
[327388860,1716039044780,-151.0,0.00016438,2]
[327388861,1716039044790,-500.0,0.00016438,2]
[327388862,1716039044801,-500.0,0.00016438,2]
[327388863,1716039044811,-151.0,0.00016438,2]
[327388864,1716039044820,-500.0,0.00016438,2]
[327388865,1716039044829,-151.0,0.00016438,2]
[327388866,1716039044838,-500.0,0.00016438,2]
[327388867,1716039044847,-151.0,0.00016438,2]
[327388868,1716039044857,-500.0,0.00016438,2]
[327388869,1716039044867,-764.02,0.00016438,2]
[327388870,1716039044877,-500.0,0.00016438,2]
[327388871,1716039044887,-500.0,0.00016438,2]
[327388872,1716039044896,-501.03550732,0.00016438,2]
[327388873,1716039044905,-500.0,0.00016438,2]
[327388874,1716039044914,-502.37873652,0.00016438,2]
[327388875,1716039044923,-151.0,0.00016438,2]
[327388876,1716039044933,-500.0,0.00016438,2]
[327388877,1716039044943,-500.0,0.00016438,2]
[327388878,1716039044953,-151.0,0.00016438,2]
[327388879,1716039044962,-151.0,0.00016438,2]
[327388880,1716039044971,-300.205766,0.00016438,2]
[327388881,1716039044980,-290.65591094,0.00016438,2]
[327388882,1716039044990,-500.0,0.00016438,2]
[327388883,1716039045000,-500.0,0.00016438,2]
[327388884,1716039045009,-3194.85,0.00016438,2]
[327388885,1716039045019,-500.0,0.00016438,2]
[327388886,1716039045029,-500.0,0.00016438,2]
[327388887,1716039045038,-158.768359,0.00016438,2]
[327388888,1716039045047,-158.768359,0.00016438,2]
[327388889,1716039045057,-500.0,0.00016438,2]
[327388890,1716039045067,-500.0,0.00016438,2]
[327388891,1716039045076,-500.0,0.00016438,2]
[327388892,1716039045086,-158.768359,0.00016438,2]
[327388893,1716039045095,-158.768359,0.00016438,2]
[327388894,1716039045104,-500.0,0.00016438,2]
[327388895,1716039045115,-158.768359,0.00016438,2]
[327388896,1716039045124,-500.0,0.00016438,2]
[327388897,1716039045134,-500.0,0.00016438,2]
[327388898,1716039045143,-502.74589596,0.00016438,2]
[327388899,1716039045152,-158.768359,0.00016438,2]
[327388900,1716039045163,-500.0,0.00016438,2]
[327388901,1716039045173,-158.768359,0.00016438,2]
[327388902,1716039045184,-158.768359,0.00016438,2]
[327388903,1716039045194,-3050.16,0.00016438,2]
[327388904,1716039045203,-158.768359,0.00016438,2]
[327388905,1716039045212,-158.768359,0.00016438,2]
[327388906,1716039045221,-595.68,0.00016438,2]
[327388907,1716039045231,-500.0,0.00016438,2]
[327388908,1716039045240,-543.71153828,0.00016438,2]
[327388909,1716039045249,-500.0,0.00016438,2]
[327388910,1716039045258,-500.65143009,0.00016438,2]
[327388911,1716039045267,-218.726756,0.00016438,2]
[327388912,1716039045277,-985.53,0.00016438,2]
[327388913,1716039045287,-500.0,0.00016438,2]
[327388914,1716039045297,-638.0753109,0.00016438,2]
[327388915,1716039045306,-500.0,0.00016438,2]
[327388916,1716039045315,-775.21,0.00016438,2]
[327388917,1716039045324,-500.0,0.00016438,2]
[327388918,1716039045334,-151.0,0.00016438,2]
[327388919,1716039045343,-151.0,0.00016438,2]
[327388920,1716039045352,-500.0,0.00016438,2]
[327388921,1716039045365,-640.54,0.00016438,2]
[327388922,1716039045375,-151.0,0.00016438,2]
[327388923,1716039045384,-151.0,0.00016438,2]
[327388924,1716039045394,-151.0,0.00016438,2]
[327388925,1716039045404,-151.0,0.00016438,2]
[327388926,1716039045414,-151.0,0.00016438,2]
[327388927,1716039045423,-500.0,0.00016438,2]
[327388928,1716039045432,-151.0,0.00016438,2]
[327388929,1716039045442,-151.479914,0.00016438,2]
[327388930,1716039045453,-6061.69,0.00016438,2]
[327388931,1716039045462,-500.0,0.00016438,2]
[327388932,1716039045471,-1550.78,0.00016438,2]
[327388933,1716039045480,-500.0,0.00016438,2]
[327388934,1716039045490,-151.0,0.00016438,2]
[327388935,1716039045500,-150.0,0.00016438,2]
[327388936,1716039045510,-151.0,0.00016438,2]
[327388937,1716039045520,-1507.08194,0.00016438,2]
[327388938,1716039045530,-151.0,0.00016438,2]
[327388939,1716039045540,-1507.08194,0.00016438,2]
[327388940,1716039045550,-203.711538,0.00016438,2]
[327388941,1716039045560,-203.711538,0.00016438,2]
[327388942,1716039045570,-1507.08194,0.00016438,2]
[327388943,1716039045579,-203.711538,0.00016438,2]
[327388944,1716039045590,-1507.08194,0.00016438,2]
[327388947,1716039045600,-203.711538,0.00016438,2]
[327388948,1716039045609,-1507.08194,0.00016438,2]
[327388949,1716039045619,-500.0,0.00016438,2]
[327388950,1716039045628,-203.711538,0.00016438,2]
[327388951,1716039045637,-500.0,0.00016438,2]
[327388952,1716039045647,-1507.08194,0.00016438,2]
[327388953,1716039045656,-1507.08194,0.00016438,2]
[327388954,1716039045666,-1507.08194,0.00016438,2]
[327388955,1716039045676,-1507.08194,0.00016438,2]
[327388956,1716039045686,-1507.08194,0.00016438,2]
[327388957,1716039045695,-203.711538,0.00016438,2]
[327388959,1716039045705,-500.0,0.00016438,2]
[327388961,1716039045714,-203.711538,0.00016438,2]
[327388963,1716039045724,-203.711538,0.00016438,2]
[327388965,1716039045733,-500.0,0.00016438,2]
[327388968,1716039045742,-203.711538,0.00016438,2]
[327388970,1716039045752,-151.0,0.00016438,2]
[327388971,1716039045761,-203.711538,0.00016438,2]
[327388972,1716039045771,-500.0,0.00016438,2]
[327388973,1716039045779,-151.0,0.00016438,2]
[327388974,1716039045789,-500.0,0.00016438,2]
[327388975,1716039045798,-151.0,0.00016438,2]
[327388976,1716039045808,-151.0,0.00016438,2]
[327388978,1716039045817,-151.0,0.00016438,2]
[327388980,1716039045826,-519.8400841,0.00016438,2]
[327388981,1716039045835,-151.0,0.00016438,2]
[327388982,1716039045844,-500.0,0.00016438,2]
[327388983,1716039045854,-151.0,0.00016438,2]
[327388984,1716039045864,-151.0,0.00016438,2]
[327388985,1716039045874,-500.0,0.00016438,2]
[327388986,1716039045883,-500.0,0.00016438,2]
[327388987,1716039045893,-500.0,0.00016438,2]
[327388988,1716039045903,-361.19658247,0.00016438,2]
[327388989,1716039045913,-500.0,0.00016438,2]
[327388990,1716039045923,-151.0,0.00016438,2]
[327388991,1716039045933,-151.0,0.00016438,2]
[327388992,1716039045942,-500.0,0.00016438,2]
[327388993,1716039045951,-702.24,0.00016438,2]
[327388994,1716039045961,-500.0,0.00016438,2]
[327388995,1716039045971,-500.0,0.00016438,2]
[327388996,1716039045980,-959.446019,0.00016438,2]
[327388997,1716039045989,-959.446019,0.00016438,2]
[327388998,1716039045999,-959.446019,0.00016438,2]
[327388999,1716039046008,-959.446019,0.00016438,2]
[327389001,1716039046017,-959.446019,0.00016438,2]
[327389003,1716039046026,-520.75446269,0.00016438,2]
[327389005,1716039046035,-500.0,0.00016438,2]
[327389007,1716039046044,-959.446019,0.00016438,2]
[327389009,1716039046054,-501.7695976,0.00016438,2]
[327389010,1716039046063,-959.446019,0.00016438,2]
[327389011,1716039046073,-959.446019,0.00016438,2]
[327389012,1716039046082,-959.446019,0.00016438,2]
[327389013,1716039046091,-959.446019,0.00016438,2]
[327389014,1716039046100,-834.08,0.00016438,2]
[327389015,1716039046110,-500.0,0.00016438,2]
[327389016,1716039046119,-500.0,0.00016438,2]
[327389017,1716039046129,-500.0,0.00016438,2]
[327389018,1716039046138,-500.0,0.00016438,2]
[327389019,1716039046147,-500.0,0.00016438,2]
[327389020,1716039046157,-151.0,0.00016438,2]
[327389021,1716039046166,-151.0,0.00016438,2]
[327389022,1716039046176,-151.0,0.00016438,2]
[327389023,1716039046186,-151.0,0.00016438,2]
[327389024,1716039046196,-151.0,0.00016438,2]
[327389025,1716039046206,-500.0,0.00016438,2]
[327389026,1716039046215,-500.0,0.00016438,2]
[327389027,1716039046225,-500.0,0.00016438,2]
[327389028,1716039046235,-151.0,0.00016438,2]
[327389029,1716039046244,-500.0,0.00016438,2]
[327389030,1716039046254,-685.11,0.00016438,2]
[327389031,1716039046265,-151.0,0.00016438,2]
[327389032,1716039046276,-500.0,0.00016438,2]
[327389033,1716039046285,-151.0,0.00016438,2]
[327389034,1716039046295,-151.0,0.00016438,2]
[327389035,1716039046304,-151.0,0.00016438,2]
[327389036,1716039046314,-500.0,0.00016438,2]
[327389037,1716039046323,-500.0,0.00016438,2]
[327389038,1716039046333,-500.0,0.00016438,2]
[327389039,1716039046342,-264.701404,0.00016438,2]
[327389040,1716039046351,-500.0,0.00016438,2]
[327389041,1716039046361,-500.0,0.00016438,2]
[327389042,1716039046374,-500.0,0.00016438,2]
[327389043,1716039046383,-500.0,0.00016438,2]
[327389044,1716039046392,-500.0,0.00016438,2]
[327389045,1716039046401,-500.0,0.00016438,2]
[327389046,1716039046411,-500.0,0.00016438,2]
[327389047,1716039046420,-400.66978854,0.00016438,2]
[327389048,1716039046438,-99.33021146,0.00016438,2]
[327389049,1716039046453,-1700.20951717,0.00016438,2]
[327389050,1716039046793,-154.81422293,6.336e-05,2]
[327389051,1716039046803,-683.67048283,0.00016438,2]
[327389052,1716039046812,-2383.88,0.00016438,2]
[327389053,1716039046822,-2383.88,0.00016438,2]
[327389054,1716039046831,-151.0,0.00016438,2]
[327389055,1716039046840,-2383.88,0.00016438,2]
[327389056,1716039046849,-151.0,0.00016438,2]
[327389057,1716039046858,-2383.88,0.00016438,2]
[327389058,1716039046867,-2383.88,0.00016438,2]
[327389059,1716039046876,-2383.88,0.00016438,2]
[327389060,1716039046886,-2383.88,0.00016438,2]
[327389061,1716039046895,-151.0,0.00016438,2]
[327389062,1716039046904,-2383.88,0.00016438,2]
[327389063,1716039046914,-2383.88,0.00016438,2]
[327389064,1716039046923,-2383.88,0.00016438,2]
[327389065,1716039046932,-151.0,0.00016438,2]
[327389066,1716039046942,-2383.88,0.00016438,2]
[327389067,1716039046951,-500.0,0.00016438,2]
[327389068,1716039046960,-151.0,0.00016438,2]
[327389069,1716039046970,-500.0,0.00016438,2]
[327389070,1716039046979,-2383.88,0.00016438,2]
[327389071,1716039046988,-2383.88,0.00016438,2]
[327389072,1716039046998,-2383.88,0.00016438,2]
[327389073,1716039047008,-2383.88,0.00016438,2]
[327389074,1716039047017,-2383.88,0.00016438,2]
[327389075,1716039047027,-2383.88,0.00016438,2]
[327389076,1716039047037,-2383.88,0.00016438,2]
[327389077,1716039047046,-151.0,0.00016438,2]
[327389078,1716039047056,-2383.88,0.00016438,2]
[327389079,1716039047066,-151.0,0.00016438,2]
[327389080,1716039047075,-2383.88,0.00016438,2]
[327389081,1716039047085,-151.0,0.00016438,2]
[327389082,1716039047094,-500.0,0.00016438,2]
[327389083,1716039047104,-151.0,0.00016438,2]
[327389084,1716039047114,-2383.88,0.00016438,2]
[327389085,1716039047124,-151.0,0.00016438,2]
[327389086,1716039047133,-2383.88,0.00016438,2]
[327389087,1716039047142,-2383.90976663,0.00016438,2]
[327389088,1716039047152,-500.0,0.00016438,2]
[327389089,1716039047162,-500.0,0.00016438,2]
[327389090,1716039047172,-913.0,0.00016438,2]
[327389091,1716039047181,-500.0,0.00016438,2]
[327389092,1716039047191,-151.0,0.00016438,2]
[327389093,1716039047201,-500.0,0.00016438,2]
[327389094,1716039047211,-153.637347,0.00016438,2]
[327389095,1716039047221,-500.0,0.00016438,2]
[327389096,1716039047231,-153.637347,0.00016438,2]
[327389097,1716039047240,-500.0,0.00016438,2]
[327389098,1716039047250,-153.637347,0.00016438,2]
[327389099,1716039047259,-153.637347,0.00016438,2]
[327389100,1716039047269,-500.0,0.00016438,2]
[327389101,1716039047278,-500.0,0.00016438,2]
[327389102,1716039047288,-500.0,0.00016438,2]
[327389103,1716039047297,-153.637347,0.00016438,2]
[327389104,1716039047307,-153.637347,0.00016438,2]
[327389105,1716039047316,-153.637347,0.00016438,2]
[327389106,1716039047326,-153.637347,0.00016438,2]
[327389107,1716039047335,-500.0,0.00016438,2]
[327389108,1716039047345,-151.0,0.00016438,2]
[327389109,1716039047354,-500.0,0.00016438,2]
[327389110,1716039047364,-151.0,0.00016438,2]
[327389111,1716039047378,-151.0,0.00016438,2]
[327389112,1716039047387,-151.0,0.00016438,2]
[327389113,1716039047396,-151.0,0.00016438,2]
[327389114,1716039047406,-500.0,0.00016438,2]
[327389115,1716039047416,-500.0,0.00016438,2]
[327389116,1716039047426,-500.0,0.00016438,2]
[327389117,1716039047435,-500.0,0.00016438,2]
[327389118,1716039047444,-151.0,0.00016438,2]
[327389119,1716039047457,-151.0,0.00016438,2]
[327389120,1716039047466,-151.0,0.00016438,2]
[327389121,1716039047475,-211.420344,0.00016438,2]
[327389122,1716039047484,-500.0,0.00016438,2]
[327389123,1716039047494,-558.89196132,0.00016438,2]
[327389124,1716039047503,-500.0,0.00016438,2]
[327389125,1716039047512,-399.41530238,0.00016438,2]
[327389126,1716039047521,-500.0,0.00016438,2]
[327389127,1716039047530,-993.27,0.00016438,2]
[327389128,1716039047539,-573.33,0.00016438,2]
[327389129,1716039047549,-501.17715103,0.00016438,2]
[327389130,1716039047558,-500.0,0.00016438,2]
[327389131,1716039047568,-500.0,0.00016438,2]
[327389132,1716039047578,-500.0,0.00016438,2]
[327389133,1716039047587,-500.0,0.00016438,2]
[327389134,1716039047596,-500.0,0.00016438,2]
[327389135,1716039047605,-500.0,0.00016438,2]
[327389136,1716039047615,-500.0,0.00016438,2]
[327389137,1716039047624,-500.0,0.00016438,2]
[327389138,1716039047634,-2117.72,0.00016438,2]
[327389139,1716039047643,-186.64669791,0.00016438,2]
[327389140,1716039047657,-313.35330209,0.00016438,2]
[327389141,1716039047666,-500.0,0.00016438,2]
[327389142,1716039047675,-467.96566841,0.00016438,2]
[327389143,1716039047687,-32.03433159,0.00016438,2]
[327389144,1716039047696,-500.0,0.00016438,2]
[327389145,1716039047706,-500.0,0.00016438,2]
[327389146,1716039047715,-500.0,0.00016438,2]
[327389147,1716039047724,-500.0,0.00016438,2]
[327389148,1716039047733,-500.0,0.00016438,2]
[327389149,1716039047742,-174.12672662,0.00016438,2]
[327389150,1716039047754,-325.87327338,0.00016438,2]
[327389151,1716039047763,-500.0,0.00016438,2]
[327389152,1716039047772,-500.0,0.00016438,2]
[327389153,1716039047781,-500.0,0.00016438,2]
[327389154,1716039047791,-561.42,0.00016438,2]
[327389155,1716039047801,-151.0,0.00016438,2]
[327389156,1716039047812,-151.0,0.00016438,2]
[327389157,1716039047822,-699.27,0.00016438,2]
[327389158,1716039047831,-151.0,0.00016438,2]
[327389159,1716039047841,-151.0,0.00016438,2]
[327389160,1716039047851,-500.0,0.00016438,2]
[327389161,1716039047861,-500.0,0.00016438,2]
[327389162,1716039047870,-209.37042287,0.00016438,2]
[327389163,1716039047879,-151.0,0.00016438,2]
[327389164,1716039047888,-193.230359,0.00016438,2]
[327389165,1716039047897,-500.0,0.00016438,2]
[327389166,1716039047906,-183.345793,0.00016438,2]
[327389167,1716039047915,-124.97524276,0.00016438,2]
[327389168,1716039047927,-456.33296914,0.00016438,2]
[327389169,1716039047936,-183.345793,0.00016438,2]
[327389170,1716039047945,-183.345793,0.00016438,2]
[327389171,1716039047956,-183.345793,0.00016438,2]
[327389172,1716039047965,-500.0,0.00016438,2]
[327389173,1716039047974,-163.10152639,0.00016438,2]
[327389174,1716039047986,-339.14987572,0.00016438,2]
[327389175,1716039047995,-534.53,0.00016438,2]
[327389176,1716039048005,-183.345793,0.00016438,2]
[327389177,1716039048014,-183.345793,0.00016438,2]
[327389178,1716039048024,-183.345793,0.00016438,2]
[327389179,1716039048033,-183.345793,0.00016438,2]
[327389180,1716039048042,-500.0,0.00016438,2]
[327389181,1716039048051,-500.0,0.00016438,2]
[327389182,1716039048060,-500.0,0.00016438,2]
[327389183,1716039048069,-501.51600002,0.00016438,2]
[327389184,1716039048079,-500.0,0.00016438,2]
[327389185,1716039048088,-155.85370913,0.00016438,2]
[327389186,1716039048097,-500.0,0.00016438,2]
[327389187,1716039048106,-500.0,0.00016438,2]
[327389188,1716039048115,-500.0,0.00016438,2]
[327389189,1716039048124,-500.0,0.00016438,2]
[327389190,1716039048133,-343.682839,0.00016438,2]
[327389191,1716039048143,-343.682839,0.00016438,2]
[327389192,1716039048153,-343.682839,0.00016438,2]
[327389193,1716039048163,-343.682839,0.00016438,2]
[327389194,1716039048172,-343.682839,0.00016438,2]
[327389195,1716039048181,-343.682839,0.00016438,2]
[327389196,1716039048190,-343.682839,0.00016438,2]
[327389197,1716039048199,-343.682839,0.00016438,2]
[327389198,1716039048210,-343.682839,0.00016438,2]
[327389199,1716039048219,-343.682839,0.00016438,2]
[327389200,1716039048228,-150.804,0.00016489,2]
[327389201,1716039048237,-51.11863313,0.00016489,2]
[327389202,1716039048424,154.81422293,6.273e-05,2]
[327389203,1716039094414,154.81422293,6.275e-05,2]
[327389204,1716039095855,186.89118678,6.275e-05,2]
[327389205,1716039096455,154.81422293,6.275e-05,2]
[327389206,1716039096800,316.15927372,6.275e-05,2]
[327389207,1716039097664,1581.42130168,6.275e-05,2]
[327389208,1716039097720,154.81422293,6.275e-05,2]
[327389209,1716039099024,157.93380693,6.275e-05,2]
[327389210,1716039099313,1338.92794901,6.275e-05,2]
[327389211,1716039099634,2678.78839717,6.275e-05,2]
[327389212,1716039100018,11053.04296534,6.275e-05,2]
[327389213,1716039101038,835.50091713,6.275e-05,2]
[327389214,1716039101418,523.3238531,6.275e-05,2]
[327389215,1716039102930,1403.26792763,6.274e-05,2]
[327389216,1716039103169,154.81422293,6.274e-05,2]
[327389217,1716039103424,154.81422293,6.274e-05,2]
[327389218,1716039103469,452.52831116,6.274e-05,2]
[327389219,1716039103510,2465.73517847,6.274e-05,2]
[327389220,1716039103965,236.5182214,6.274e-05,2]
[327389221,1716039104093,154.81422293,6.274e-05,2]
[327389222,1716039104564,702.56585547,6.274e-05,2]
[327389223,1716039104978,7894.33531896,6.275e-05,2]
[327389224,1716039105020,154.81422293,6.274e-05,2]
[327389225,1716039105280,684.60091818,6.275e-05,2]
[327389226,1716039105561,395.32769299,6.275e-05,2]
[327389227,1716039105696,675.83241571,6.275e-05,2]
[327389228,1716039105737,154.81422293,6.275e-05,2]
[327389229,1716039105821,1043.25678867,6.275e-05,2]
[327389230,1716039106055,658.15339953,6.275e-05,2]
[327389231,1716039106145,1350.43959976,6.275e-05,2]
[327389232,1716039106703,154.81422293,6.275e-05,2]
[327389233,1716039106745,154.81422293,6.275e-05,2]
[327389234,1716039106881,719.96474571,6.275e-05,2]
[327389235,1716039107096,522.61290648,6.273e-05,2]
[327389236,1716039107695,194.45514723,6.275e-05,2]
[327389237,1716039107735,238.75882037,6.275e-05,2]
[327389238,1716039107934,410.45768134,6.273e-05,2]
[327389239,1716039107975,2597.41542727,6.275e-05,2]
[327389240,1716039108020,154.81422293,6.273e-05,2]
[327389241,1716039108374,1094.99548197,6.275e-05,2]
[327389242,1716039108414,818.31964662,6.273e-05,2]
[327389243,1716039109186,154.81422293,6.273e-05,2]
[327389244,1716039109488,3062.48237355,6.275e-05,2]
[327389245,1716039109842,1885.45852368,6.275e-05,2]
[327389246,1716039110169,492.86440031,6.273e-05,2]
[327389247,1716039110773,2114.46454517,6.275e-05,2]
[327389248,1716039111139,154.81422293,6.273e-05,2]
[327389249,1716039111195,1496.37630434,6.275e-05,2]
[327389250,1716039111896,261.10136921,6.275e-05,2]
[327389251,1716039112130,154.81422293,6.275e-05,2]
[327389252,1716039112624,328.32221374,6.275e-05,2]
[327389253,1716039112987,154.81422293,6.275e-05,2]
[327389254,1716039113028,2634.32657847,6.275e-05,2]
[327389255,1716039113558,156.45299204,6.275e-05,2]
[327389256,1716039113960,285.03925166,6.275e-05,2]
[327389257,1716039114300,10508.75516608,6.275e-05,2]
[327389258,1716039115036,9559.52730965,6.275e-05,2]
[327389259,1716039116153,513.4844886,6.275e-05,2]
[327389260,1716039116700,158.51655577,6.275e-05,2]
[327389261,1716039118444,525.64777211,6.275e-05,2]
[327389262,1716039118490,1897.58698072,6.275e-05,2]
[327389263,1716039118532,154.81422293,6.275e-05,2]
[327389264,1716039118583,1716.94679494,6.275e-05,2]
[327389265,1716039118640,690.19911136,6.275e-05,2]
[327389266,1716039118689,207.34451471,6.275e-05,2]
[327389267,1716039118730,1417.90635911,6.275e-05,2]
[327389268,1716039119198,330.96158487,6.275e-05,2]
[327389269,1716039119902,909.64823199,6.275e-05,2]
[327389270,1716039126138,20685.1527172,6.176e-05,2]
[327389271,1716039129998,154.81422293,6.275e-05,2]
[327389272,1716039134633,1555.98835748,6.273e-05,2]
[327389273,1716039172368,186.89118678,6.275e-05,2]
[327389274,1716039172471,236.5182214,6.275e-05,2]
[327389275,1716039173826,1338.92794901,6.275e-05,2]
[327389276,1716039174225,154.81422293,6.275e-05,2]
[327389277,1716039174501,11053.04296534,6.275e-05,2]
[327389278,1716039174671,492.86440031,6.275e-05,2]
[327389279,1716039175895,2465.73517847,6.275e-05,2]
[327389280,1716039176220,675.83241571,6.275e-05,2]
[327389281,1716039176846,154.81422293,6.275e-05,2]
[327389282,1716039178489,719.96474571,6.275e-05,2]
[327389283,1716039178544,7894.33531896,6.275e-05,2]